fUST/lending_fUST_20251014
["ID","MTS","AMOUNT","RATE_DAILY","PERIOD"]
[391167867,1760405459967,-500.0,0.00022135,2]
[391167868,1760405459977,-199.53637581,0.00022135,2]
[391167869,1760405459988,-151.0,0.00022135,2]
[391167870,1760405459998,-427.0,0.00022139,2]
[391167871,1760405460008,-500.0,0.00022173,2]
[391167872,1760405460019,-210.37556942,0.0002219,2]
[391167873,1760405460029,-500.0,0.0002219,2]
[391167874,1760405460040,-500.0,0.0002219,2]
[391167875,1760405460050,-198.87405269,0.0002219,2]
[391167876,1760405460060,-1000.0,0.00022221,2]
[391167877,1760405460071,-1007.3257516,0.00022221,2]
[391167878,1760405460080,-249.70228567,0.00022221,2]
[391167879,1760405460091,-500.0,0.00022221,2]
[391167880,1760405460101,-1000.0,0.00022221,2]
[391167881,1760405460111,-500.0,0.00022221,2]
[391167882,1760405460121,-1000.0,0.00022221,2]
[391167883,1760405460130,-1000.0,0.00022221,2]
[391167884,1760405460140,-321.53753827,0.00022221,2]
[391167885,1760405460150,-500.0,0.00022221,2]
[391167886,1760405460159,-1013.72261937,0.00022221,2]
[391167887,1760405460169,-381.95119137,0.00022221,2]
[391167888,1760405460178,-1000.0,0.00022221,2]
[391167889,1760405460188,-1000.0,0.00022221,2]
[391167890,1760405460198,-1000.0,0.00022221,2]
[391167891,1760405460207,-1000.0,0.00022221,2]
[391167892,1760405460217,-500.0,0.00022221,2]
[391167893,1760405460227,-1000.0,0.00022221,2]
[391167894,1760405460237,-1002.98383582,0.00022221,2]
[391167895,1760405460246,-1000.0,0.00022221,2]
[391167896,1760405460255,-1000.0,0.00022221,2]
[391167897,1760405460264,-1000.0,0.00022221,2]
[391167898,1760405460273,-638.06714122,0.00022221,2]
[391167899,1760405460283,-1000.0,0.00022221,2]
[391167900,1760405460292,-1000.0,0.00022221,2]
[391167901,1760405460301,-1000.0,0.00022221,2]
[391167902,1760405460310,-581.47953579,0.00022221,2]
[391167903,1760405460319,-571.35754644,0.00022221,2]
[391167904,1760405460328,-1000.0,0.00022221,2]
[391167905,1760405460338,-500.0,0.00022221,2]
[391167906,1760405460347,-1000.0,0.00022221,2]
[391167907,1760405460357,-1000.0,0.00022221,2]
[391167908,1760405460366,-1112.94982994,0.00022221,2]
[391167909,1760405460377,-620.17371076,0.00022221,2]
[391167910,1760405460386,-583.3600727,0.00022221,2]
[391167911,1760405460395,-1000.0,0.00022221,2]
[391167912,1760405460405,-1000.0,0.00022221,2]
[391167913,1760405460415,-500.48728147,0.00022221,2]
[391167914,1760405460424,-1000.0,0.00022221,2]
[391167915,1760405460434,-1000.0,0.00022221,2]
[391167916,1760405460444,-1000.0,0.00022221,2]
[391167917,1760405460453,-1000.0,0.00022221,2]
[391167918,1760405460462,-500.0,0.00022245,2]
[391167919,1760405460472,-500.0,0.00022245,2]
[391167920,1760405460482,-500.0,0.000223,2]
[391167921,1760405460493,-500.0,0.000223,2]
[391167922,1760405460504,-547.0,0.00022355,2]
[391167923,1760405460513,-500.0,0.00022355,2]
[391167924,1760405460522,-500.0,0.00022409,2]
[391167925,1760405460532,-500.0,0.00022447,2]
[391167926,1760405460543,-500.0,0.00022464,2]
[391167927,1760405460555,-500.0,0.00022519,2]
[391167928,1760405460565,-500.0,0.00022521,2]
[391167929,1760405460576,-500.28208769,0.00022521,2]
[391167930,1760405460585,-1000.0,0.00022521,2]
[391167931,1760405460594,-1000.0,0.00022521,2]
[391167932,1760405460603,-595.83082782,0.00022521,2]
[391167933,1760405460612,-1000.0,0.00022521,2]
[391167934,1760405460622,-1000.0,0.00022521,2]
[391167935,1760405460632,-1002.74911584,0.00022521,2]
[391167936,1760405460641,-503.21846594,0.00022521,2]
[391167937,1760405460651,-1000.0,0.00022521,2]
[391167938,1760405460660,-1004.28662136,0.00022521,2]
[391167939,1760405460669,-501.49849318,0.00022521,2]
[391167940,1760405460678,-408.88053992,0.00022521,2]
[391167941,1760405460775,-1000.0,0.00022521,2]
[391167942,1760405460785,-1000.0,0.00022521,2]
[391167943,1760405460795,-1000.0,0.00022521,2]
[391167944,1760405460804,-1003.0654575,0.00022521,2]
[391167945,1760405460814,-1000.0,0.00022521,2]
[391167946,1760405460823,-1006.17506786,0.00022521,2]
[391167947,1760405460833,-1000.0,0.00022521,2]
[391167948,1760405460842,-1003.60826244,0.00022521,2]
[391167949,1760405460852,-505.25278766,0.00022521,2]
[391167950,1760405460861,-1000.0,0.00022521,2]
[391167951,1760405460871,-501.46025524,0.00022521,2]
[391167952,1760405460881,-1000.0,0.00022521,2]
[391167953,1760405460891,-1005.04973629,0.00022521,2]
[391167954,1760405460900,-1000.0,0.00022521,2]
[391167955,1760405460909,-296.10141948,0.00022557,2]
[391167956,1760405460918,-500.0,0.00022574,2]
[391167957,1760405460928,-500.0,0.00022629,2]
[391167958,1760405460937,-500.0,0.00022683,2]
[391167959,1760405460946,-208.0,0.00022685,8]
[391167960,1760405460955,-500.0,0.00022721,2]
[391167961,1760405460965,-500.0,0.00022738,2]
[391167962,1760405460974,-500.0,0.00022768,2]
[391167963,1760405460984,-1500.0,0.00022768,2]
[391167964,1760405460993,-1500.0,0.00022768,2]
[391167965,1760405461002,-984.86286373,0.00022768,2]
[391167966,1760405461021,-1500.0,0.00022768,2]
[391167967,1760405461032,-1500.0,0.00022768,2]
[391167968,1760405461042,-1000.0,0.00022768,2]
[391167969,1760405461053,-1500.0,0.00022768,2]
[391167970,1760405461063,-1500.0,0.00022768,2]
[391167971,1760405461074,-501.52018692,0.00022768,2]
[391167972,1760405461084,-1500.0,0.00022768,2]
[391167973,1760405461094,-1500.0,0.00022768,2]
[391167974,1760405461104,-1500.0,0.00022768,2]
[391167975,1760405461114,-1500.0,0.00022768,2]
[391167976,1760405461123,-942.51102124,0.00022768,2]
[391167977,1760405461133,-1500.0,0.00022768,2]
[391167978,1760405461143,-504.71422386,0.00022768,2]
[391167979,1760405461153,-1502.31346583,0.00022768,2]
[391167980,1760405461164,-1500.0,0.00022768,2]
[391167981,1760405461174,-1509.22414146,0.00022768,2]
[391167982,1760405461184,-1502.56346801,0.00022768,2]
[391167983,1760405461194,-500.0,0.00022793,2]
[391167984,1760405461203,-598.5369784,0.00022823,2]
[391167985,1760405461213,-420.0,0.00022832,2]
[391167986,1760405461223,-500.0,0.00022848,2]
[391167987,1760405461233,-500.0,0.00022903,2]
[391167988,1760405461243,-160.0,0.00022917,2]
[391167989,1760405461252,-1680.0,0.0002294,2]
[391167990,1760405461262,-466.45038513,0.00022957,2]
[391167991,1760405461272,-5243.0,0.00022971,3]
[391167992,1760405461281,-2621.5,0.00022971,3]
[391167993,1760405461291,-1310.74,0.00022984,3]
[391167994,1760405461300,-667.72,0.00022984,3]
[391167995,1760405461311,-333.86,0.00022984,3]
[391167996,1760405461322,-402.34485587,0.00022986,3]
[391167997,1760405461331,-500.0,0.00022995,2]
[391167998,1760405461341,-164.0,0.00023,7]
[391167999,1760405461351,-159720.37601852,0.00023,3]
[391168000,1760405461360,-402.34485587,0.00023,3]
[391168001,1760405461369,-1505.03816899,0.00023068,2]
[391168002,1760405461380,-1500.0,0.00023068,2]
[391168003,1760405461389,-1500.0,0.00023068,2]
[391168004,1760405461399,-500.0,0.00023068,2]
[391168005,1760405461408,-1502.47862123,0.00023068,2]
[391168006,1760405461417,-502.83132429,0.00023068,2]
[391168007,1760405461427,-1500.0,0.00023068,2]
[391168008,1760405461437,-1500.0,0.00023068,2]
[391168009,1760405461446,-500.0,0.00023068,2]
[391168010,1760405461455,-439.35543194,0.00023068,2]
[391168011,1760405461465,-508.83361366,0.00023068,2]
[391168012,1760405461474,-1500.0,0.00023068,2]
[391168013,1760405461484,-1500.0,0.00023068,2]
[391168014,1760405461493,-330.26696788,0.00023157,2]
[391168015,1760405461506,-214.107632,0.00023264,7]
[391168016,1760405461516,-500.0,0.00023269,2]
[391168017,1760405461526,-95000.0,0.00023288,30]
[391168018,1760405461536,-2000.0,0.00023316,2]
[391168019,1760405461544,-2000.0,0.00023316,2]
[391168020,1760405461554,-1409.59158678,0.00023316,2]
[391168021,1760405461563,-2000.0,0.00023316,2]
[391168022,1760405461573,-2000.0,0.00023316,2]
[391168023,1760405461582,-2000.0,0.00023316,2]
[391168024,1760405461592,-2000.0,0.00023316,2]
[391168025,1760405461601,-2000.0,0.00023316,2]
[391168026,1760405461622,-2000.0,0.00023316,2]
[391168027,1760405461645,-2000.0,0.00023316,2]
[391168028,1760405461661,-2000.0,0.00023316,2]
[391168029,1760405461679,-1514.47427922,0.00023316,2]
[391168030,1760405461696,-1200.0,0.00023452,2]
[391168031,1760405461714,-260.0,0.00023465,2]
[391168032,1760405461731,-500.0,0.00023543,2]
[391168033,1760405461747,-8167.71126427,0.00023548,2]
[391168034,1760405461766,-2000.0,0.00023616,2]
[391168035,1760405461784,-2000.0,0.00023616,2]
[391168036,1760405461800,-1612.23536578,0.00023616,2]
[391168037,1760405461814,-2000.0,0.00023616,2]
[391168038,1760405461827,-2000.0,0.00023616,2]
[391168039,1760405461841,-784.18353649,0.00023616,2]
[391168040,1760405461856,-402.34485587,0.000237,3]
[391168041,1760405461872,-364.43251628,0.00023757,2]
[391168042,1760405461888,-258.45,0.00023793,2]
[391168043,1760405461904,-500.0,0.00023817,2]
[391168044,1760405461915,-2500.0,0.00023864,2]
[391168045,1760405461928,-2500.0,0.00023864,2]
[391168046,1760405461945,-2500.0,0.00023864,2]
[391168047,1760405461959,-510.91624184,0.00023864,2]
[391168048,1760405461972,-2500.0,0.00023864,2]
[391168049,1760405461988,-2500.0,0.00023864,2]
[391168050,1760405462000,-2005.46787646,0.00023864,2]
[391168051,1760405462015,-2500.0,0.00023864,2]
[391168052,1760405462030,-2500.0,0.00023864,2]
[391168053,1760405462046,-2500.0,0.00023864,2]
[391168054,1760405462062,-5284.03202824,0.00024,60]
[391168055,1760405462077,-360.0,0.00024013,2]
[391168056,1760405462091,-500.0,0.00024091,2]
[391168057,1760405462105,-598.5369784,0.00024135,2]
[391168058,1760405462120,-15047.13906787,0.00024142,2]
[391168059,1760405462134,-1234.49869312,0.00024164,2]
[391168060,1760405462147,-2500.0,0.00024164,2]
[391168061,1760405462160,-2500.0,0.00024164,2]
[391168062,1760405462173,-720.0,0.00024263,20]
[391168063,1760405462187,-69042.53,0.000243,7]
[391168064,1760405462200,-151.0,0.000243,2]
[391168065,1760405462214,-801.67168,0.000243,7]
[391168066,1760405462227,-801.67168,0.000243,7]
[391168067,1760405462241,-801.67168,0.000243,7]
[391168068,1760405462254,-801.67168,0.000243,7]
[391168069,1760405462266,-151.0,0.000243,7]
[391168070,1760405462279,-151.0,0.000243,7]
[391168071,1760405462292,-151.0,0.000243,7]
[391168072,1760405462305,-151.0,0.000243,7]
[391168073,1760405462318,-151.0,0.000243,7]
[391168074,1760405462330,-217.751633,0.000243,7]
[391168075,1760405462343,-217.751633,0.000243,7]
[391168076,1760405462356,-151.0,0.000243,7]
[391168077,1760405462368,-217.751633,0.000243,7]
[391168078,1760405462385,-151.0,0.000243,7]
[391168079,1760405462398,-217.751633,0.000243,7]
[391168080,1760405462410,-156.587,0.00024352,2]
[391168081,1760405462423,-398.59806468,0.00024357,2]
[391168082,1760405462435,-500.0,0.00024365,2]
[391168083,1760405462448,-2011.58800229,0.00024412,2]
[391168084,1760405462460,-3000.0,0.00024412,2]
[391168085,1760405462472,-3000.0,0.00024412,2]
[391168086,1760405462485,-3000.0,0.00024412,2]
[391168087,1760405462500,-3000.0,0.00024412,2]
[391168088,1760405462514,-1737.83368408,0.00024412,2]
[391168089,1760405462528,-2367.04720687,0.00024412,2]
[391168090,1760405462541,-2306.36688917,0.00024412,2]
[391168091,1760405462554,-181.01326445,0.00024543,7]
[391168092,1760405462567,-308.69320318,0.00024561,2]
[391168093,1760405462583,-1000.0,0.00024591,2]
[391168094,1760405462597,-1000.0,0.00024591,2]
[391168095,1760405462610,-1000.0,0.00024591,2]
[391168096,1760405462623,-1000.0,0.00024591,2]
[391168097,1760405462636,-1000.0,0.00024591,2]
[391168098,1760405462649,-1000.0,0.00024591,2]
[391168099,1760405462662,-1000.0,0.00024591,2]
[391168100,1760405462675,-1000.0,0.00024591,2]
[391168101,1760405462688,-1000.0,0.00024591,2]
[391168102,1760405462702,-1000.0,0.00024591,2]
[391168103,1760405462715,-1000.0,0.00024591,2]
[391168104,1760405462728,-1000.0,0.00024591,2]
[391168105,1760405462737,-1000.0,0.00024591,2]
[391168106,1760405462747,-1000.0,0.00024591,2]
[391168107,1760405462756,-1000.0,0.00024591,2]
[391168108,1760405462765,-1000.0,0.00024591,2]
[391168109,1760405462968,-1000.0,0.00024591,2]
[391168110,1760405462978,-1000.0,0.00024591,2]
[391168111,1760405462989,-1000.0,0.00024591,2]
[391168112,1760405462999,-1000.0,0.00024591,2]
[391168113,1760405463008,-151.0,0.000246,5]
[391168114,1760405463018,-151.0,0.000246,7]
[391168115,1760405463028,-151.0,0.000246,7]
[391168116,1760405463038,-151.0,0.000246,7]
[391168117,1760405463048,-151.0,0.000246,7]
[391168118,1760405463058,-151.0,0.000246,7]
[391168119,1760405463068,-151.0,0.000246,7]
[391168120,1760405463077,-151.0,0.000246,7]
[391168121,1760405463087,-151.0,0.000246,7]
[391168122,1760405463097,-151.0,0.000246,7]
[391168123,1760405463106,-151.0,0.000246,7]
[391168124,1760405463116,-151.0,0.000246,7]
[391168125,1760405463125,-151.0,0.000246,7]
[391168126,1760405463135,-159.356212,0.000246,7]
[391168127,1760405463145,-151.0,0.000246,7]
[391168128,1760405463155,-151.0,0.000246,7]
[391168129,1760405463164,-151.0,0.000246,7]
[391168130,1760405463174,-524.495487,0.000246,7]
[391168131,1760405463184,-524.495487,0.000246,7]
[391168132,1760405463194,-151.0,0.000246,7]
[391168133,1760405463204,-524.495487,0.000246,7]
[391168134,1760405463213,-151.0,0.000246,7]
[391168135,1760405463223,-524.495487,0.000246,7]
[391168136,1760405463233,-151.0,0.000246,7]
[391168137,1760405463243,-151.0,0.000246,7]
[391168138,1760405463252,-151.0,0.000246,7]
[391168139,1760405463261,-151.0,0.000246,7]
[391168140,1760405463270,-151.0,0.000246,7]
[391168141,1760405463279,-151.0,0.000246,7]
[391168142,1760405463288,-203.906816,0.000246,7]
[391168143,1760405463297,-151.0,0.000246,7]
[391168144,1760405463306,-151.0,0.000246,7]
[391168145,1760405463316,-151.0,0.000246,7]
[391168146,1760405463325,-151.0,0.000246,7]
[391168147,1760405463334,-151.0,0.000246,7]
[391168148,1760405463343,-151.0,0.000246,7]
[391168149,1760405463353,-151.0,0.000246,7]
[391168150,1760405463362,-279.311498,0.000246,7]
[391168151,1760405463371,-500.0,0.00024639,2]
[391168152,1760405463382,-1500.0,0.00024657,8]
[391168153,1760405463392,-453.697729,0.00024658,14]
[391168154,1760405463401,-3000.0,0.00024712,2]
[391168155,1760405463410,-3000.0,0.00024712,2]
[391168156,1760405463420,-151.0,0.000248,7]
[391168157,1760405463430,-295.161599,0.000248,7]
[391168158,1760405463439,-151.0,0.000248,7]
[391168159,1760405463449,-70426.1282854,0.000248,2]
[391168160,1760405463458,-587.0,0.00024836,2]
[391168161,1760405463467,-502.61662809,0.00024873,2]
[391168162,1760405463476,-500.0,0.00024873,2]
[391168163,1760405463487,-502.11854094,0.00024873,2]
[391168164,1760405463497,-150.0,0.00024873,2]
[391168165,1760405463510,-200.0,0.00024899,2]
[391168166,1760405463519,-151.0,0.000249,7]
[391168167,1760405463529,-151.0,0.000249,7]
[391168168,1760405463538,-151.0,0.000249,7]
[391168169,1760405463547,-151.0,0.000249,7]
[391168170,1760405463556,-151.0,0.000249,7]
[391168171,1760405463565,-151.0,0.000249,7]
[391168172,1760405463576,-151.0,0.000249,7]
[391168173,1760405463585,-151.0,0.000249,7]
[391168174,1760405463595,-151.0,0.000249,7]
[391168175,1760405463606,-151.0,0.000249,7]
[391168176,1760405463616,-151.0,0.000249,7]
[391168177,1760405463626,-151.0,0.000249,7]
[391168178,1760405463635,-151.0,0.000249,7]
[391168179,1760405463644,-176.5478,0.000249,7]
[391168180,1760405463653,-176.5478,0.000249,7]
[391168181,1760405463663,-176.5478,0.000249,7]
[391168182,1760405463672,-176.5478,0.000249,7]
[391168183,1760405463682,-151.0,0.000249,7]
[391168184,1760405463692,-151.0,0.000249,7]
[391168185,1760405463701,-299.577907,0.000249,7]
[391168186,1760405463710,-299.577907,0.000249,7]
[391168187,1760405463720,-299.577907,0.000249,7]
[391168188,1760405463729,-299.577907,0.000249,7]
[391168189,1760405463739,-151.0,0.000249,7]
[391168190,1760405463749,-151.0,0.000249,7]
[391168191,1760405463759,-151.0,0.000249,7]
[391168192,1760405463768,-151.0,0.000249,7]
[391168193,1760405463777,-151.0,0.000249,7]
[391168194,1760405463787,-151.0,0.000249,7]
[391168195,1760405463796,-151.0,0.000249,7]
[391168196,1760405463805,-151.0,0.000249,7]
[391168197,1760405463815,-151.0,0.000249,7]
[391168198,1760405463825,-151.0,0.000249,7]
[391168199,1760405463835,-151.0,0.000249,7]
[391168200,1760405463845,-151.0,0.000249,7]
[391168201,1760405463856,-151.0,0.000249,7]
[391168202,1760405463866,-151.0,0.000249,7]
[391168203,1760405463876,-524.495487,0.000249,7]
[391168204,1760405463890,-524.495487,0.000249,7]
[391168205,1760405463901,-151.0,0.000249,7]
[391168206,1760405463911,-524.495487,0.000249,7]
[391168207,1760405463922,-151.0,0.000249,7]
[391168208,1760405463932,-524.495487,0.000249,7]
[391168209,1760405463942,-151.0,0.000249,7]
[391168210,1760405463953,-151.0,0.000249,7]
[391168211,1760405463963,-151.0,0.000249,7]
[391168212,1760405463972,-151.0,0.000249,7]
[391168213,1760405463983,-151.0,0.000249,7]
[391168214,1760405463993,-176.034416,0.000249,7]
[391168215,1760405464002,-151.0,0.000249,7]
[391168216,1760405464012,-266.99336,0.000249,7]
[391168217,1760405464022,-151.0,0.000249,7]
[391168218,1760405464032,-151.0,0.000249,7]
[391168219,1760405464043,-243.120702,0.000249,7]
[391168220,1760405464054,-151.0,0.000249,7]
[391168221,1760405464064,-151.0,0.000249,2]
[391168222,1760405464075,-801.67168,0.000249,7]
[391168223,1760405464085,-801.67168,0.000249,7]
[391168224,1760405464095,-801.67168,0.000249,7]
[391168225,1760405464106,-801.67168,0.000249,7]
[391168226,1760405464117,-151.0,0.000249,7]
[391168227,1760405464128,-151.0,0.000249,7]
[391168228,1760405464137,-151.0,0.000249,7]
[391168229,1760405464148,-151.0,0.000249,7]
[391168230,1760405464158,-151.0,0.000249,7]
[391168231,1760405464168,-217.751633,0.000249,7]
[391168232,1760405464178,-217.751633,0.000249,7]
[391168233,1760405464188,-151.0,0.000249,7]
[391168234,1760405464199,-217.751633,0.000249,7]
[391168235,1760405464209,-151.0,0.000249,7]
[391168236,1760405464220,-217.751633,0.000249,7]
[391168237,1760405464230,-419004.051897,0.000249,2]
[391168238,1760405464240,-500.0,0.00024913,2]
[391168239,1760405464250,-516.9,0.00024926,2]
[391168240,1760405464260,-1500.0,0.00024931,8]
[391168241,1760405464270,-432.76361309,0.00024957,2]
[391168242,1760405464280,-3507.621945,0.0002496,2]
[391168243,1760405464290,-3500.0,0.0002496,2]
[391168244,1760405464300,-2006.85177544,0.0002496,2]
[391168245,1760405464310,-1000.0,0.0002496,2]
[391168246,1760405464320,-177.90835514,0.00025,2]
[391168247,1760405464330,-172.65316788,0.00025,2]
[391168248,1760405464339,-196.24809998,0.00025,2]
[391168249,1760405464349,-162.83936187,0.00025,2]
[391168250,1760405464359,-452.9999998,0.00025,5]
[391168251,1760405464369,-402.34485587,0.0002503,2]
[391168252,1760405464379,-2351.0,0.00025072,2]
[391168253,1760405464389,-2163.837,0.00025082,2]
[391168254,1760405464399,-161.6984759,0.000251,2]
[391168255,1760405464409,-442.207,0.00025165,9]
[391168256,1760405464418,-500.0,0.00025187,2]
[391168257,1760405464428,-1500.0,0.00025205,8]
[391168258,1760405464438,-500.0,0.0002526,2]
[391168259,1760405464448,-3510.78884147,0.0002526,2]
[391168260,1760405464458,-8167.71126427,0.0002528,2]
[391168261,1760405464467,-162.83936187,0.000253,2]
[391168262,1760405464477,-161.6984759,0.000254,2]
[391168263,1760405464487,-1000.0,0.00025421,2]
[391168264,1760405464498,-300.77784067,0.00025421,2]
[391168265,1760405464512,-983.858,0.00025441,2]
[391168266,1760405464522,-411.0,0.00025441,2]
[391168267,1760405464531,-418.168,0.00025441,2]
[391168268,1760405464542,-151.0,0.00025441,7]
[391168269,1760405464551,-151.0,0.00025441,7]
[391168270,1760405464562,-598.5369784,0.00025447,2]
[391168271,1760405464571,-500.0,0.00025461,2]
[391168272,1760405464581,-1500.0,0.00025479,8]
[391168273,1760405464591,-162.83936187,0.000255,2]
[391168274,1760405464601,-4000.0,0.00025508,2]
[391168275,1760405464610,-466.92916149,0.00025557,2]
[391168276,1760405464620,-161.6984759,0.000256,2]
[391168277,1760405464630,-157.44,0.00025662,2]
[391168278,1760405464640,-500.0,0.00025735,2]
[391168279,1760405464651,-1500.0,0.00025753,8]
[391168280,1760405464660,-162.83936187,0.000258,2]
[391168281,1760405464671,-160.0,0.00025809,3]
[391168282,1760405464680,-161.6984759,0.000259,2]
[391168283,1760405464688,-4198.0,0.00025982,2]
[391168284,1760405464698,-239.0,0.00026,3]
[391168285,1760405464708,-94514.13266845,0.00026,30]
[391168286,1760405464719,-402.34485587,0.00026,30]
[391168287,1760405464728,-500.0,0.00026008,2]
[391168288,1760405464738,-1000.0,0.00026027,8]
[391168289,1760405464747,-10012.03,0.00026027,2]
[391168290,1760405464757,-4500.0,0.00026056,2]
[391168291,1760405464766,-775.35,0.00026059,2]
[391168292,1760405464776,-161.6984759,0.000261,2]
[391168293,1760405464786,-501.09470989,0.00026157,2]
[391168294,1760405464795,-500.0,0.00026282,2]
[391168295,1760405464805,-69042.53,0.000263,7]
[391168296,1760405464815,-225.0,0.00026331,2]
[391168297,1760405464825,-4781.0,0.00026397,2]
[391168298,1760405464835,-151.0,0.00026429,2]
[391168299,1760405464844,-1000.0,0.00026429,2]
[391168300,1760405464855,-151.0,0.00026429,2]
[391168301,1760405464866,-151.0,0.00026429,2]
[391168302,1760405464875,-162.380719,0.00026429,2]
[391168303,1760405464885,-151.0,0.00026429,2]
[391168304,1760405464895,-500.0,0.00026429,2]
[391168305,1760405464905,-162.380719,0.00026429,2]
[391168306,1760405464916,-1000.0,0.00026429,2]
[391168307,1760405464926,-151.0,0.00026429,2]
[391168308,1760405464936,-2030.296672,0.00026429,2]
[391168309,1760405464946,-151.0,0.00026429,2]
[391168310,1760405464956,-500.0,0.00026429,2]
[391168311,1760405464967,-1000.0,0.00026429,2]
[391168312,1760405464977,-151.0,0.00026429,2]
[391168313,1760405464987,-152.45985867,0.00026429,2]
[391168314,1760405464997,-500.0,0.00026429,2]
[391168315,1760405465008,-1000.0,0.00026429,2]
[391168316,1760405465018,-500.0,0.00026429,2]
[391168317,1760405465028,-151.0,0.00026429,2]
[391168318,1760405465038,-1000.0,0.00026429,2]
[391168319,1760405465048,-2616.20294735,0.00026429,2]
[391168320,1760405465059,-500.0,0.00026429,2]
[391168321,1760405465069,-151.0,0.00026429,2]
[391168322,1760405465078,-1000.0,0.00026429,2]
[391168323,1760405465088,-500.0,0.00026429,2]
[391168324,1760405465098,-151.0,0.00026429,2]
[391168325,1760405465108,-1000.0,0.00026429,2]
[391168326,1760405465118,-500.0,0.00026429,2]
[391168327,1760405465127,-151.0,0.00026429,2]
[391168328,1760405465136,-1000.0,0.00026429,2]
[391168329,1760405465146,-18603.8837,0.00026429,2]
[391168330,1760405465156,-151.0,0.00026429,2]
[391168331,1760405465166,-500.0,0.00026429,2]
[391168332,1760405465177,-1000.0,0.00026429,2]
[391168333,1760405465187,-151.0,0.00026429,2]
[391168334,1760405465197,-500.0,0.00026429,2]
[391168335,1760405465206,-1000.0,0.00026429,2]
[391168336,1760405465216,-250.0,0.00026429,2]
[391168337,1760405465226,-500.0,0.00026429,2]
[391168338,1760405465236,-151.0,0.00026429,2]
[391168339,1760405465250,-814.05751991,0.00026429,2]
[391168340,1760405465259,-151.0,0.00026429,2]
[391168341,1760405465268,-250.0,0.00026429,2]
[391168342,1760405465277,-500.0,0.00026429,2]
[391168343,1760405465286,-151.0,0.00026429,2]
[391168344,1760405465295,-500.0,0.00026429,2]
[391168345,1760405465304,-151.0,0.00026429,2]
[391168346,1760405465314,-151.0,0.00026429,2]
[391168347,1760405465324,-250.0,0.00026429,2]
[391168348,1760405465334,-151.0,0.00026429,2]
[391168349,1760405465343,-500.0,0.00026429,2]
[391168350,1760405465353,-500.0,0.00026429,2]
[391168351,1760405465362,-151.0,0.00026429,2]
[391168352,1760405465372,-151.0,0.00026429,2]
[391168353,1760405465382,-151.0,0.00026429,2]
[391168354,1760405465391,-500.0,0.00026429,2]
[391168355,1760405465400,-500.0,0.00026429,2]
[391168356,1760405465410,-250.0,0.00026429,2]
[391168357,1760405465420,-151.0,0.00026429,2]
[391168358,1760405465429,-151.0,0.00026429,2]
[391168359,1760405465438,-151.0,0.00026429,2]
[391168360,1760405465558,-500.0,0.00026429,2]
[391168361,1760405465567,-500.0,0.00026429,2]
[391168362,1760405465577,-250.0,0.00026429,2]
[391168363,1760405465585,-151.0,0.00026429,2]
[391168364,1760405465595,-151.0,0.00026429,2]
[391168365,1760405465604,-151.0,0.00026429,2]
[391168366,1760405465613,-500.0,0.00026429,2]